[Event "3rd Memorial Warakomska 2019"]
[Site "Suwalki"]
[Date "2019.08.11"]
[Round "8.13"]
[White "Sharankov, Grigory"]
[Black "Karthik Venkataraman"]
[Result "1/2-1/2"]
[ECO "E20"]
[WhiteElo "2221"]
[BlackElo "2480"]
[Annotator "ChessBase"]
[PlyCount "121"]
[EventDate "2019.08.05"]
[EventType "swiss"]
[EventCountry "POL"]
[SourceTitle "playchess.com"]
[Source "ChessBase"]
[SourceQuality "1"]
[TimeControl "40/5400+30:1800+30"]

1. d4 {[%emt 0:00:00]} Nf6 {[%emt 0:04:49]} 2. c4 {[%emt 0:00:00]} e6 {[%emt 0:00:19]} 3. Nc3 {[%emt 0:00:00]} Bb4 {[%emt 0:00:10]} 4. g3 {[%emt 0:00:00]} O-O {[%emt 0:00:57]} 5. Bg2 {[%emt 0:00:02]} d5 {[%emt 0:00:06]} 6. cxd5 {[%emt 0:00:05]} exd5 {[%emt 0:00:10]} 7. e3 {[%emt 0:00:02]} Re8 {[%emt 0:02:18]} 8. Nge2 {[%emt 0:00:08]} a5 {[%emt 0:02:11]} 9. O-O {[%emt 0:01:22]} Na6 {[%emt 0:02:05]} 10. a3 {[%emt 0:03:45]} Bf8 {[%emt 0:00:13]} 11. Nf4 {[%emt 0:01:07]} c6 {[%emt 0:00:07]} 12. f3 {[%emt 0:02:39]} b5 {[%emt 0:00:09]} 13. Bd2 {[%emt 0:03:27]} h6 {[%emt 0:03:28]} 14. Nd3 {[%emt 0:06:31]} Bf5 {[%emt 0:03:44]} 15. Ne5 {[%emt 0:00:50]} c5 {[%emt 0:03:15]} 16. Be1 {[%emt 0:03:47]} b4 {[%emt 0:02:42]} 17. Na4 {[%emt 0:06:51]} Rc8 {[%emt 0:06:46]} 18. g4 {[%emt 0:07:50]} Bh7 {[%emt 0:01:15]} 19. axb4 {[%emt 0:03:05]} cxd4 {[%emt 0:01:47]} 20. Qxd4 {[%emt 0:02:30]} Bxb4 {[%emt 0:00:54]} 21. Bg3 {[%emt 0:04:59]} Nc5 {[%emt 0:00:43]} 22. Nxc5 {[%emt 0:09:39]} Bxc5 {[%emt 0:00:25]} 23. Qd2 {[%emt 0:00:03]} Qb6 {[%emt 0:00:16]} 24. Qxa5 {[%emt 0:01:31]} Bxe3+ {[%emt 0:00:12]} 25. Kh1 {[%emt 0:00:38]} Qxb2 {[%emt 0:00:24]} 26. Qa6 {[%emt 0:04:57]} Rc3 {[%emt 0:08:53]} 27. Ra2 {[%emt 0:04:50]} Qb3 {[%emt 0:00:13]} 28. Ra5 {[%emt 0:04:52]} Rc1 {[%emt 0:03:29]} 29. Ra3 {[%emt 0:01:27]} Rxf1+ {[%emt 0:02:11]} 30. Bxf1 {[%emt 0:00:01]} Qb6 {[%emt 0:00:11]} 31. Qxb6 {[%emt 0:00:20]} Bxb6 {[%emt 0:00:04]} 32. Kg2 {[%emt 0:01:28]} Bc5 {[%emt 0:01:21]} 33. Ra5 {[%emt 0:01:57]} Bd6 {[%emt 0:06:40]} 34. Nd7 {[%emt 0:02:48]} Bxg3 {[%emt 0:01:10]} 35. Nxf6+ {[%emt 0:00:02]} gxf6 {[%emt 0:00:12]} 36. Kxg3 {[%emt 0:00:10]} Rd8 {[%emt 0:00:03]} 37. Ra3 {[%emt 0:00:11]} Kf8 {[%emt 0:00:31]} 38. Kf4 {[%emt 0:00:34]} Re8 {[%emt 0:01:13]} 39. Bb5 {[%emt 0:03:38]} Re5 {[%emt 0:01:23]} 40. Ra8+ {[%emt 0:00:00]} Kg7 {[%emt 0:00:00]} 41. Rd8 {[%emt 0:01:44]} Bc2 {[%emt 0:00:08]} 42. Bc6 {[%emt 0:01:07]} Bb3 {[%emt 0:00:04]} 43. Rd7 {[%emt 0:00:39]} Bc4 {[%emt 0:00:08]} 44. h3 {[%emt 0:01:15]} h5 {[%emt 0:00:09]} 45. Kg3 {[%emt 0:01:46]} Kg6 {[%emt 0:01:48]} 46. Rd8 {[%emt 0:03:30]} Kg7 {[%emt 0:00:50]} 47. Rd7 {[%emt 0:00:48]} hxg4 {[%emt 0:00:04]} 48. hxg4 {[%emt 0:00:18]} Kg6 {[%emt 0:00:03]} 49. Kf4 {[%emt 0:00:37]} Kg7 {[%emt 0:00:28]} 50. Kg3 {[%emt 0:00:34]} Kf8 {[%emt 0:03:57]} 51. Kf4 {[%emt 0:00:48]} Rg5 {[%emt 0:00:08]} 52. Kg3 {[%emt 0:00:57]} Re5 {[%emt 0:00:59]} 53. Kf4 {[%emt 0:00:09]} Bb3 {[%emt 0:00:07]} 54. Kg3 {[%emt 0:00:34]} Kg7 {[%emt 0:01:56]} 55. Kf4 {[%emt 0:00:37]} Kg6 {[%emt 0:00:07]} 56. Rd8 {[%emt 0:00:38]} Ba2 {[%emt 0:00:19]} 57. Rd7 {[%emt 0:01:00]} Rg5 {[%emt 0:00:34]} 58. Rd6 {[%emt 0:00:38]} Re5 {[%emt 0:00:59]} 59. Rd7 {[%emt 0:00:15]} Bb3 {[%emt 0:00:09]} 60. Rd8 {[%emt 0:00:19]} Kg7 {[%emt 0:00:35]} 61. Rd7 {[%emt 0:01:50]} 1/2-1/2

[Event "3rd Memorial Warakomska 2019"]
[Site "Suwalki"]
[Date "2019.08.11"]
[Round "8.14"]
[White "Matviishen, Viktor"]
[Black "Zylka, Stanislaw"]
[Result "1-0"]
[ECO "C77"]
[WhiteElo "2495"]
[BlackElo "2308"]
[Annotator "ChessBase"]
[PlyCount "73"]
[EventDate "2019.08.05"]
[EventType "swiss"]
[EventCountry "POL"]
[SourceTitle "playchess.com"]
[Source "ChessBase"]
[SourceQuality "1"]
[TimeControl "40/5400+30:1800+30"]

1. e4 {[%emt 0:07:13]} e5 {[%emt 0:00:00]} 2. Nf3 {[%emt 0:00:06]} Nc6 {[%emt 0:00:00]} 3. Bb5 {[%emt 0:00:04]} a6 {[%emt 0:00:00]} 4. Ba4 {[%emt 0:00:04]} Nf6 {[%emt 0:00:09]} 5. d3 {[%emt 0:00:04]} b5 {[%emt 0:00:23]} 6. Bb3 {[%emt 0:00:04]} Bc5 {[%emt 0:00:10]} 7. Nc3 {[%emt 0:00:25]} d6 {[%emt 0:02:48]} 8. a4 {[%emt 0:00:29]} Rb8 {[%emt 0:11:33]} 9. axb5 {[%emt 0:00:11]} axb5 {[%emt 0:00:05]} 10. Nd5 {[%emt 0:11:35]} h6 {[%emt 0:03:37]} 11. c3 {[%emt 0:01:52]} Nxd5 {[%emt 0:02:54]} 12. Bxd5 {[%emt 0:01:05]} Ne7 {[%emt 0:00:30]} 13. Bb3 {[%emt 0:00:04]} O-O {[%emt 0:00:51]} 14. O-O {[%emt 0:02:13]} Ng6 {[%emt 0:01:25]} 15. Be3 {[%emt 0:09:32]} Qf6 {[%emt 0:04:39]} 16. h3 {[%emt 0:06:36]} Nf4 {[%emt 0:09:07]} 17. Kh2 {[%emt 0:00:34]} g5 {[%emt 0:09:37]} 18. Ng1 {[%emt 0:02:32]} g4 {[%emt 0:10:55]} 19. g3 {[%emt 0:02:17]} Nxh3 {[%emt 0:02:06]} 20. Nxh3 {[%emt 0:00:06]} gxh3 {[%emt 0:00:12]} 21. d4 {[%emt 0:04:02]} Bb6 {[%emt 0:00:12]} 22. f4 {[%emt 0:00:26]} exf4 {[%emt 0:07:48]} 23. Rxf4 {[%emt 0:01:20]} Qg6 {[%emt 0:02:27]} 24. Rh4 {[%emt 0:02:45]} b4 {[%emt 0:08:38]} 25. Bxh6 {[%emt 0:01:59]} bxc3 {[%emt 0:01:16]} 26. bxc3 {[%emt 0:00:04]} Re8 {[%emt 0:02:14]} 27. Bc2 {[%emt 0:03:44]} c5 {[%emt 0:00:44]} 28. e5 {[%emt 0:02:57]} f5 {[%emt 0:01:59]} 29. exf6 {[%emt 0:04:21]} Qxf6 {[%emt 0:00:21]} 30. Bb3+ {[%emt 0:00:53]} Be6 {[%emt 0:00:26]} 31. Qg4+ {[%emt 0:00:11]} Kf7 {[%emt 0:00:47]} 32. Rf1 {[%emt 0:00:24]} Ke7 {[%emt 0:02:27]} 33. Bxe6 {[%emt 0:03:16]} Qxf1 {[%emt 0:06:39]} 34. Bg5+ {[%emt 0:00:10]} Kf8 {[%emt 0:00:06]} 35. Rh8+ {[%emt 0:00:59]} Kg7 {[%emt 0:00:08]} 36. Rh7+ {[%emt 0:00:17]} Kxh7 {[%emt 0:00:32]} 37. Qh5+ {[%emt 0:00:06]} 1-0

[Event "3rd Memorial Warakomska 2019"]
[Site "Suwalki"]
[Date "2019.08.11"]
[Round "8.15"]
[White "Efroimski, Marsel"]
[Black "Pavlov, Sergey"]
[Result "0-1"]
[ECO "B45"]
[WhiteElo "2318"]
[BlackElo "2486"]
[Annotator "ChessBase"]
[PlyCount "92"]
[EventDate "2019.08.05"]
[EventType "swiss"]
[EventCountry "POL"]
[SourceTitle "playchess.com"]
[Source "ChessBase"]
[SourceQuality "1"]
[TimeControl "40/5400+30:1800+30"]

1. e4 {[%emt 0:00:00]} c5 {[%emt 0:00:00]} 2. Nc3 {[%emt 0:00:00]} e6 {[%emt 0:00:30]} 3. Nf3 {[%emt 0:00:00]} Nc6 {[%emt 0:00:08]} 4. d4 {[%emt 0:00:00]} cxd4 {[%emt 0:00:08]} 5. Nxd4 {[%emt 0:00:00]} Nf6 {[%emt 0:00:07]} 6. Nxc6 {[%emt 0:00:21]} bxc6 {[%emt 0:00:08]} 7. e5 {[%emt 0:00:04]} Nd5 {[%emt 0:00:08]} 8. Ne4 {[%emt 0:00:05]} Qc7 {[%emt 0:01:03]} 9. f4 {[%emt 0:00:06]} Qb6 {[%emt 0:02:03]} 10. c4 {[%emt 0:00:11]} Ne3 {[%emt 0:00:17]} 11. Qd3 {[%emt 0:00:06]} Bb4+ {[%emt 0:00:29]} 12. Bd2 {[%emt 0:06:03]} Ba6 {[%emt 0:00:55]} 13. c5 {[%emt 0:19:05]} Nxf1 {[%emt 0:47:23]} 14. Nd6+ {[%emt 0:19:20]} Ke7 {[%emt 0:01:39]} 15. cxb6 {[%emt 0:02:57]} Bxd2+ {[%emt 0:01:00]} 16. Qxd2 {[%emt 0:00:21]} Nxd2 {[%emt 0:00:10]} 17. b7 {[%emt 0:00:38]} Bxb7 {[%emt 0:04:36]} 18. Kxd2 {[%emt 0:00:15]} Rab8 {[%emt 0:01:53]} 19. b4 {[%emt 0:11:54]} f6 {[%emt 0:03:59]} 20. Rhb1 {[%emt 0:08:22]} g5 {[%emt 0:15:38]} 21. g3 {[%emt 0:00:50]} Rhg8 {[%emt 0:00:49]} 22. h4 {[%emt 0:06:50]} Ba6 {[%emt 0:03:16]} 23. a4 {[%emt 0:07:48]} gxf4 {[%emt 0:07:03]} 24. gxf4 {[%emt 0:00:05]} Rg2+ {[%emt 0:01:46]} 25. Ke3 {[%emt 0:04:55]} fxe5 {[%emt 0:02:44]} 26. fxe5 {[%emt 0:00:13]} Re2+ {[%emt 0:00:50]} 27. Kd4 {[%emt 0:00:14]} Rd2+ {[%emt 0:01:09]} 28. Kc3 {[%emt 0:02:09]} Rd3+ {[%emt 0:00:26]} 29. Kc2 {[%emt 0:00:07]} Rd5 {[%emt 0:00:39]} 30. b5 {[%emt 0:05:24]} Rxe5 {[%emt 0:01:47]} 31. bxa6 {[%emt 0:05:06]} Rc5+ {[%emt 0:00:36]} 32. Kd3 {[%emt 0:00:10]} Rxb1 {[%emt 0:00:07]} 33. Rxb1 {[%emt 0:01:56]} Kxd6 {[%emt 0:00:13]} 34. Rb7 {[%emt 0:00:04]} Ra5 {[%emt 0:02:12]} 35. Rxa7 {[%emt 0:00:04]} Rxa4 {[%emt 0:00:05]} 36. h5 {[%emt 0:00:24]} h6 {[%emt 0:00:28]} 37. Kc3 {[%emt 0:00:25]} e5 {[%emt 0:01:10]} 38. Ra8 {[%emt 0:01:36]} Kd5 {[%emt 0:00:35]} 39. a7 {[%emt 0:00:31]} d6 {[%emt 0:00:40]} 40. Rh8 {[%emt 0:00:00]} Rxa7 {[%emt 0:00:00]} 41. Rxh6 {[%emt 0:00:43]} Ra3+ {[%emt 0:00:23]} 42. Kd2 {[%emt 0:00:05]} Rh3 {[%emt 0:00:19]} 43. Ke2 {[%emt 0:01:01]} c5 {[%emt 0:00:32]} 44. Kf2 {[%emt 0:00:43]} c4 {[%emt 0:00:12]} 45. Kg2 {[%emt 0:00:03]} Rh4 {[%emt 0:00:20]} 46. Rh8 {[%emt 0:00:14]} c3 {[%emt 0:00:27]} 0-1

[Event "3rd Memorial Warakomska 2019"]
[Site "Suwalki"]
[Date "2019.08.11"]
[Round "8.16"]
[White "Koziol, Kamil"]
[Black "Galperin, Platon"]
[Result "0-1"]
[ECO "B61"]
[WhiteElo "2307"]
[BlackElo "2445"]
[Annotator "NA"]
[PlyCount "78"]
[EventDate "2019.08.05"]
[EventType "swiss"]
[EventCountry "POL"]
[SourceTitle "playchess.com"]
[Source "ChessBase"]
[SourceQuality "1"]
[TimeControl "40/5400+30:1800+30"]

1. e4 {[%emt 0:01:15]} c5 {[%emt 0:04:11]} 2. Nf3 {[%emt 0:00:15]} Nc6 {[%emt 0:00:06]} 3. d4 {[%emt 0:00:18]} cxd4 {[%emt 0:00:03]} 4. Nxd4 {[%emt 0:00:08]} Nf6 {[%emt 0:00:04]} 5. Nc3 {[%emt 0:00:27]} d6 {[%emt 0:00:03]} 6. Bg5 {[%emt 0:04:12]} Bd7 {[%emt 0:00:30]} 7. Qd2 {[%emt 0:04:06]} h6 {[%emt 0:00:47]} 8. Bxf6 {[%emt 0:05:38]} gxf6 {[%emt 0:00:17]} 9. f4 {[%emt 0:07:37]} Nxd4 {[%emt 0:02:18]} 10. Qxd4 {[%emt 0:00:02]} Qa5 {[%emt 0:00:02]} 11. O-O-O {[%emt 0:02:29]} Rc8 {[%emt 0:00:01]} 12. Kb1 {[%emt 0:02:42]} Qc5 {[%emt 0:01:11]} 13. Qd3 {[%emt 0:06:51]} f5 {[%emt 0:00:09]} 14. e5 {[%emt 0:06:09]} Bg7 {[%emt 0:00:03]} 15. Be2 {[%emt 0:07:14]} O-O {[%emt 0:00:18]} 16. g4 {[%emt 0:03:43]} Rfd8 {[%emt 0:19:50]} 17. gxf5 {[%emt 0:22:03]} dxe5 {[%emt 0:00:14]} 18. Ne4 {[%emt 0:11:14]} Qc7 {[%emt 0:01:34]} 19. Rdg1 {[%emt 0:03:26]} Kh8 {[%emt 0:06:00]} 20. f6 {[%emt 0:02:02]} exf6 {[%emt 0:03:47]} 21. Rxg7 {[%emt 0:02:40]} Ba4 {[%emt 0:16:10]} 22. Rh7+ {[%emt 0:02:46]} Kxh7 {[%emt 0:00:03]} 23. Nxf6+ {[%emt 0:01:52]} Kg7 {[%emt 0:00:02]} 24. Qh7+ {[%emt 0:01:15]} Kxf6 {[%emt 0:01:37]} 25. Qxh6+ {[%emt 0:00:03]} Ke7 {[%emt 0:00:34]} 26. Qg5+ {[%emt 0:00:32]} f6 {[%emt 0:02:44]} 27. Qg7+ {[%emt 0:00:01]} Kd6 {[%emt 0:00:11]} 28. Rd1+ {[%emt 0:01:05]} Kc6 {[%emt 0:00:25]} 29. Qxf6+ {[%emt 0:00:28]} Kc5 {[%emt 0:00:58]} 30. Bd3 {[%emt 0:01:47]} Qd6 {[%emt 0:01:34]} 31. Qf7 {[%emt 0:00:18]} Kb6 {[%emt 0:00:40]} 32. Rg1 {[%emt 0:00:48]} Qc5 {[%emt 0:01:30]} 33. Rg6+ {[%emt 0:00:27]} Rc6 {[%emt 0:01:28]} 34. b3 {[%emt 0:00:30]} Rxd3 {[%emt 0:01:53]} 35. Rxc6+ {[%emt 0:00:18]} Bxc6 {[%emt 0:00:04]} 36. cxd3 {[%emt 0:00:07]} Qg1+ {[%emt 0:00:12]} 37. Kb2 {[%emt 0:00:13]} Qxh2+ {[%emt 0:00:08]} 38. Kc3 {[%emt 0:01:03]} Qxf4 {[%emt 0:00:07]} 39. Qe7 {[%emt 0:00:09]} Qc1+ {[%emt 0:00:09] Kd4} 0-1

[Event "3rd Memorial Warakomska 2019"]
[Site "Suwalki"]
[Date "2019.08.11"]
[Round "8.17"]
[White "Lewtak, Damian"]
[Black "Budrewicz, Krzysztof"]
[Result "1-0"]
[ECO "A05"]
[WhiteElo "2354"]
[BlackElo "2188"]
[Annotator "NA"]
[PlyCount "77"]
[EventDate "2019.08.05"]
[EventType "swiss"]
[EventCountry "POL"]
[SourceTitle "playchess.com"]
[Source "ChessBase"]
[SourceQuality "1"]
[TimeControl "40/5400+30:1800+30"]

1. Nf3 {[%emt 0:00:00]} Nf6 {[%emt 0:00:00]} 2. b3 {[%emt 0:00:00]} g6 {[%emt 0:00:14]} 3. Bb2 {[%emt 0:00:19]} Bg7 {[%emt 0:00:08]} 4. e3 {[%emt 0:00:44]} O-O {[%emt 0:00:20]} 5. g3 {[%emt 0:01:58]} d6 {[%emt 0:08:52]} 6. Bg2 {[%emt 0:00:14]} e5 {[%emt 0:02:48]} 7. d3 {[%emt 0:02:09]} c5 {[%emt 0:04:33]} 8. c4 {[%emt 0:02:05]} Nc6 {[%emt 0:00:09]} 9. O-O {[%emt 0:00:43]} Re8 {[%emt 0:01:59]} 10. Nc3 {[%emt 0:02:13]} h6 {[%emt 0:02:15]} 11. Nd2 {[%emt 0:03:31]} Rb8 {[%emt 0:01:24]} 12. Nde4 {[%emt 0:03:29]} Be6 {[%emt 0:03:58]} 13. a3 {[%emt 0:08:01]} a6 {[%emt 0:00:47]} 14. Nxf6+ {[%emt 0:01:14]} Bxf6 {[%emt 0:00:27]} 15. Nd5 {[%emt 0:01:16]} Bg7 {[%emt 0:04:18]} 16. Bc3 {[%emt 0:03:53]} Ne7 {[%emt 0:01:59]} 17. Qd2 {[%emt 0:08:29]} Nxd5 {[%emt 0:03:02]} 18. cxd5 {[%emt 0:00:05]} Bd7 {[%emt 0:00:44]} 19. e4 {[%emt 0:01:33]} Rf8 {[%emt 0:19:23]} 20. f4 {[%emt 0:05:48]} f6 {[%emt 0:05:58]} 21. f5 {[%emt 0:00:52]} g5 {[%emt 0:02:00]} 22. Bf3 {[%emt 0:00:53]} Be8 {[%emt 0:00:41]} 23. Kg2 {[%emt 0:02:37]} h5 {[%emt 0:03:55]} 24. Qd1 {[%emt 0:00:13]} g4 {[%emt 0:01:01]} 25. Be2 {[%emt 0:00:04]} Bh6 {[%emt 0:09:50]} 26. Rh1 {[%emt 0:00:06]} Rf7 {[%emt 0:01:16]} 27. h3 {[%emt 0:02:35]} gxh3+ {[%emt 0:00:13]} 28. Rxh3 {[%emt 0:00:05]} Rg7 {[%emt 0:00:04]} 29. Bxh5 {[%emt 0:01:49]} Bg5 {[%emt 0:03:21]} 30. Bd2 {[%emt 0:07:25]} Bxh5 {[%emt 0:02:33]} 31. Rxh5 {[%emt 0:00:24]} Bxd2 {[%emt 0:00:11]} 32. Qxd2 {[%emt 0:00:16]} Kf7 {[%emt 0:00:10]} 33. Rah1 {[%emt 0:00:32]} Qb6 {[%emt 0:00:25]} 34. Rh7 {[%emt 0:04:11]} Rbg8 {[%emt 0:00:50]} 35. Qh6 {[%emt 0:00:34]} Rxh7 {[%emt 0:01:00]} 36. Qxh7+ {[%emt 0:00:07]} Rg7 {[%emt 0:00:02]} 37. Qh5+ {[%emt 0:00:09]} Ke7 {[%emt 0:04:19]} 38. Qh8 {[%emt 0:00:08]} Rf7 {[%emt 0:00:12]} 39. Qc8 {[%emt 0:01:27]} 1-0

[Event "3rd Memorial Warakomska 2019"]
[Site "Suwalki"]
[Date "2019.08.11"]
[Round "8.18"]
[White "Punin, Andrii"]
[Black "Reza, Wojciech"]
[Result "1/2-1/2"]
[ECO "B81"]
[WhiteElo "2305"]
[BlackElo "2261"]
[Annotator "NA"]
[PlyCount "60"]
[EventDate "2019.08.05"]
[EventType "swiss"]
[EventCountry "POL"]
[SourceTitle "playchess.com"]
[Source "ChessBase"]
[SourceQuality "1"]
[TimeControl "40/5400+30:1800+30"]

1. e4 {[%emt 0:00:00]} c5 {[%emt 0:01:55]} 2. Nf3 {[%emt 0:01:13]} e6 {[%emt 0:03:26]} 3. d4 {[%emt 0:00:09]} cxd4 {[%emt 0:00:06]} 4. Nxd4 {[%emt 0:00:04]} Nf6 {[%emt 0:02:38]} 5. Nc3 {[%emt 0:00:08]} d6 {[%emt 0:00:10]} 6. g4 {[%emt 0:00:16]} a6 {[%emt 0:01:48]} 7. g5 {[%emt 0:00:15]} Nfd7 {[%emt 0:00:04]} 8. h4 {[%emt 0:00:13]} b5 {[%emt 0:01:21]} 9. a3 {[%emt 0:01:49]} Bb7 {[%emt 0:02:00]} 10. Be3 {[%emt 0:00:14]} Nb6 {[%emt 0:03:13]} 11. Qg4 {[%emt 0:04:44]} N8d7 {[%emt 0:07:31]} 12. f4 {[%emt 0:00:13]} Rc8 {[%emt 0:08:07]} 13. Rh3 {[%emt 0:06:06]} Rxc3 {[%emt 0:43:41]} 14. bxc3 {[%emt 0:00:22]} Qc7 {[%emt 0:00:38]} 15. Bd2 {[%emt 0:00:36]} e5 {[%emt 0:07:57]} 16. Nf5 {[%emt 0:03:44]} g6 {[%emt 0:03:01]} 17. Ne3 {[%emt 0:02:52]} Nc5 {[%emt 0:01:48]} 18. Bg2 {[%emt 0:06:29]} Bxe4 {[%emt 0:06:29]} 19. fxe5 {[%emt 0:02:45]} Bxg2 {[%emt 0:00:20]} 20. Qxg2 {[%emt 0:00:07]} Bg7 {[%emt 0:01:30]} 21. Nd5 {[%emt 0:04:28]} Nxd5 {[%emt 0:00:28]} 22. Qxd5 {[%emt 0:00:06]} Bxe5 {[%emt 0:00:48]} 23. O-O-O {[%emt 0:01:56]} Qc8 {[%emt 0:01:28]} 24. Rf3 {[%emt 0:08:38]} O-O {[%emt 0:00:11]} 25. Bf4 {[%emt 0:02:08]} Nd7 {[%emt 0:00:30]} 26. Bxe5 {[%emt 0:03:25]} Nxe5 {[%emt 0:00:06]} 27. Rg3 {[%emt 0:01:56]} Qf5 {[%emt 0:00:49]} 28. Rg2 {[%emt 0:05:08]} Qh3 {[%emt 0:01:06]} 29. Qxd6 {[%emt 0:04:43]} Qxg2 {[%emt 0:00:37]} 30. Qxe5 {[%emt 0:00:06]} Qf2 {[%emt 0:00:37]} 1/2-1/2

[Event "3rd Memorial Warakomska 2019"]
[Site "Suwalki"]
[Date "2019.08.11"]
[Round "8.19"]
[White "Barski, Radoslaw"]
[Black "Zakrzewski, Marek"]
[Result "1-0"]
[ECO "B48"]
[WhiteElo "2468"]
[BlackElo "2311"]
[Annotator "ChessBase"]
[PlyCount "79"]
[EventDate "2019.08.05"]
[EventType "swiss"]
[EventCountry "POL"]
[SourceTitle "playchess.com"]
[Source "ChessBase"]
[SourceQuality "1"]
[TimeControl "40/5400+30:1800+30"]

1. e4 {[%emt 0:00:00]} c5 {[%emt 0:00:00]} 2. Nf3 {[%emt 0:00:00]} e6 {[%emt 0:00:00]} 3. d4 {[%emt 0:00:00]} cxd4 {[%emt 0:00:00]} 4. Nxd4 {[%emt 0:00:02]} Nc6 {[%emt 0:00:05]} 5. Nc3 {[%emt 0:00:42]} Qc7 {[%emt 0:00:08]} 6. Be3 {[%emt 0:01:26]} a6 {[%emt 0:00:09]} 7. a3 {[%emt 0:00:08]} b5 {[%emt 0:00:08]} 8. Nxc6 {[%emt 0:00:06]} Qxc6 {[%emt 0:00:07]} 9. Be2 {[%emt 0:00:09]} Bb7 {[%emt 0:00:23]} 10. O-O {[%emt 0:01:31]} Rc8 {[%emt 0:19:00]} 11. Bf3 {[%emt 0:01:41]} Qc7 {[%emt 0:01:38]} 12. Re1 {[%emt 0:05:01]} d6 {[%emt 0:02:55]} 13. Bd4 {[%emt 0:07:00]} e5 {[%emt 0:08:37]} 14. Nd5 {[%emt 0:05:05]} Bxd5 {[%emt 0:00:10]} 15. exd5 {[%emt 0:00:04]} Nf6 {[%emt 0:04:32]} 16. Bc3 {[%emt 0:00:40]} Be7 {[%emt 0:01:20]} 17. a4 {[%emt 0:00:18]} O-O {[%emt 0:02:59]} 18. Qd2 {[%emt 0:09:59]} Qd7 {[%emt 0:19:13]} 19. axb5 {[%emt 0:06:18]} axb5 {[%emt 0:00:07]} 20. Ra6 {[%emt 0:00:15]} Ne8 {[%emt 0:04:11]} 21. Rc6 {[%emt 0:07:31]} f5 {[%emt 0:01:28]} 22. Be2 {[%emt 0:00:57]} Rb8 {[%emt 0:00:36]} 23. Ba5 {[%emt 0:01:56]} Nf6 {[%emt 0:05:02]} 24. Bb6 {[%emt 0:09:53]} f4 {[%emt 0:05:53]} 25. Bxb5 {[%emt 0:03:27]} f3 {[%emt 0:00:26]} 26. g3 {[%emt 0:00:16]} Qg4 {[%emt 0:05:22]} 27. Bf1 {[%emt 0:02:52]} Ne4 {[%emt 0:00:51]} 28. Qe3 {[%emt 0:26:29]} Ng5 {[%emt 0:00:21]} 29. h4 {[%emt 0:01:15]} Nh3+ {[%emt 0:08:50]} 30. Kh2 {[%emt 0:00:03]} Nf4 {[%emt 0:00:07]} 31. gxf4 {[%emt 0:00:11]} Qxh4+ {[%emt 0:02:40]} 32. Bh3 {[%emt 0:00:13]} Rxf4 {[%emt 0:00:21]} 33. Rg1 {[%emt 0:00:19]} Rbf8 {[%emt 0:06:38]} 34. Rg3 {[%emt 0:01:29]} Qh5 {[%emt 0:01:02]} 35. Rc7 {[%emt 0:01:14]} Bg5 {[%emt 0:00:06]} 36. Qc3 {[%emt 0:01:01]} Re4 {[%emt 0:01:20]} 37. Rc8 {[%emt 0:02:18]} Bf4 {[%emt 0:00:18]} 38. Rxf8+ {[%emt 0:00:06]} Kxf8 {[%emt 0:00:05]} 39. Qc8+ {[%emt 0:00:03]} Qe8 {[%emt 0:00:52]} 40. Qf5+ {[%emt 0:00:00]} 1-0

[Event "3rd Memorial Warakomska 2019"]
[Site "Suwalki"]
[Date "2019.08.11"]
[Round "8.20"]
[White "Szadkowski, Kamil"]
[Black "Kaczmarek, Aleksander"]
[Result "1-0"]
[ECO "C11"]
[WhiteElo "2245"]
[BlackElo "2389"]
[Annotator "NA"]
[PlyCount "135"]
[EventDate "2019.08.05"]
[EventType "swiss"]
[EventCountry "POL"]
[SourceTitle "playchess.com"]
[Source "ChessBase"]
[SourceQuality "1"]
[TimeControl "40/5400+30:1800+30"]

1. e4 {[%emt 0:00:00]} e6 {[%emt 0:00:00]} 2. d4 {[%emt 0:00:00]} d5 {[%emt 0:00:29]} 3. Nc3 {[%emt 0:00:00]} Nf6 {[%emt 0:00:06]} 4. Bg5 {[%emt 0:00:24]} dxe4 {[%emt 0:00:09]} 5. Nxe4 {[%emt 0:00:07]} Be7 {[%emt 0:00:03]} 6. Ng3 {[%emt 0:04:59]} Nbd7 {[%emt 0:10:36]} 7. Nf3 {[%emt 0:05:18]} c5 {[%emt 0:01:21]} 8. Bc4 {[%emt 0:16:29]} cxd4 {[%emt 0:06:57]} 9. O-O {[%emt 0:06:08]} h6 {[%emt 0:12:08]} 10. Bf4 {[%emt 0:01:51]} g5 {[%emt 0:14:45]} 11. Bc1 {[%emt 0:13:25]} Qc7 {[%emt 0:06:03]} 12. Qe2 {[%emt 0:04:21]} a6 {[%emt 0:05:57]} 13. Re1 {[%emt 0:10:14]} Nb6 {[%emt 0:01:15]} 14. Bd3 {[%emt 0:02:36]} Nbd5 {[%emt 0:02:40]} 15. Nxd4 {[%emt 0:03:26]} Bd7 {[%emt 0:03:08]} 16. c4 {[%emt 0:13:51]} Nf4 {[%emt 0:00:12]} 17. Bxf4 {[%emt 0:00:19]} Qxf4 {[%emt 0:01:10]} 18. Ndf5 {[%emt 0:02:00]} Bb4 {[%emt 0:01:25]} 19. Ng7+ {[%emt 0:01:08]} Kf8 {[%emt 0:03:51]} 20. N7h5 {[%emt 0:00:07]} Nxh5 {[%emt 0:00:33]} 21. Nxh5 {[%emt 0:00:01]} Qd4 {[%emt 0:01:35]} 22. Red1 {[%emt 0:01:34]} Ba4 {[%emt 0:06:46]} 23. b3 {[%emt 0:02:56]} Bc6 {[%emt 0:00:07]} 24. Bf5 {[%emt 0:03:02]} Qc5 {[%emt 0:02:18]} 25. Qb2 {[%emt 0:00:05]} Rg8 {[%emt 0:06:03]} 26. Bxe6 {[%emt 0:00:06]} Qe7 {[%emt 0:03:32]} 27. Bd5 {[%emt 0:00:06]} g4 {[%emt 0:03:05]} 28. g3 {[%emt 0:05:15]} Ba3 {[%emt 0:04:25]} 29. Qd4 {[%emt 0:00:30]} Bc5 {[%emt 0:00:35]} 30. Qf4 {[%emt 0:00:16]} Rg6 {[%emt 0:03:12]} 31. Re1 {[%emt 0:00:23]} Qd7 {[%emt 0:00:08]} 32. Nf6 {[%emt 0:00:46]} Qd6 {[%emt 0:00:18]} 33. Qxd6+ {[%emt 0:03:50]} Bxd6 {[%emt 0:00:06]} 34. Ne4 {[%emt 0:00:05]} Bb4 {[%emt 0:00:34]} 35. Re3 {[%emt 0:00:37]} f5 {[%emt 0:00:34]} 36. Nc3 {[%emt 0:00:06]} Bc5 {[%emt 0:00:48]} 37. Re5 {[%emt 0:00:15]} Rf6 {[%emt 0:00:42]} 38. Rd1 {[%emt 0:00:26]} Bb4 {[%emt 0:00:18]} 39. Ne2 {[%emt 0:00:19]} Bd6 {[%emt 0:00:43]} 40. Re6 {[%emt 0:00:00]} Rxe6 {[%emt 0:00:00]} 41. Bxe6 {[%emt 0:00:40]} Bc5 {[%emt 0:09:52]} 42. Bd5 {[%emt 0:01:45]} Ke7 {[%emt 0:10:47]} 43. Kg2 {[%emt 0:07:15]} a5 {[%emt 0:02:17]} 44. Nf4 {[%emt 0:02:24]} Bd6 {[%emt 0:01:01]} 45. Re1+ {[%emt 0:00:52]} Kd7 {[%emt 0:00:11]} 46. Bxc6+ {[%emt 0:00:13]} Kxc6 {[%emt 0:03:14]} 47. Re6 {[%emt 0:00:38]} a4 {[%emt 0:03:06]} 48. Rxh6 {[%emt 0:01:57]} a3 {[%emt 0:02:33]} 49. Nd5 {[%emt 0:05:17]} Re8 {[%emt 0:00:39]} 50. Ne3 {[%emt 0:01:22]} Kd7 {[%emt 0:01:02]} 51. Kf1 {[%emt 0:01:36]} Bc5 {[%emt 0:01:25]} 52. Nd5 {[%emt 0:01:23]} Bd4 {[%emt 0:00:45]} 53. Rh7+ {[%emt 0:01:38]} Kc8 {[%emt 0:00:15]} 54. Ne7+ {[%emt 0:00:40]} Kb8 {[%emt 0:00:13]} 55. Nxf5 {[%emt 0:00:04]} Bc5 {[%emt 0:00:15]} 56. Rd7 {[%emt 0:01:27]} Rh8 {[%emt 0:00:57]} 57. Rd5 {[%emt 0:00:54]} b6 {[%emt 0:00:06]} 58. Nh4 {[%emt 0:00:30]} Re8 {[%emt 0:00:27]} 59. Ng6 {[%emt 0:00:37]} Bb4 {[%emt 0:00:21]} 60. Ne5 {[%emt 0:00:27]} Bc3 {[%emt 0:00:04]} 61. Nd3 {[%emt 0:00:27]} Rh8 {[%emt 0:00:07]} 62. c5 {[%emt 0:01:46]} Rxh2 {[%emt 0:00:21]} 63. cxb6 {[%emt 0:00:39]} Kb7 {[%emt 0:01:22]} 64. Rd6 {[%emt 0:00:18]} Rh5 {[%emt 0:00:10]} 65. Ke2 {[%emt 0:00:27]} Rb5 {[%emt 0:01:40]} 66. Rg6 {[%emt 0:00:14]} Ba5 {[%emt 0:00:15]} 67. Rxg4 {[%emt 0:00:19]} Bxb6 {[%emt 0:00:50]} 68. Ra4 {[%emt 0:00:08]} 1-0